{"text_format":"1","workbook":"xlsx","n_sheets":1,"sheets":["октябрь"],"not_rendered":{"charts":0,"images":0,"macros":1,"external_links":0,"defined_names":2,"comments":0,"pivot_tables":0},"unopened":[],"bounds":{"document_bytes":16777216,"sheet_cells":100000,"rows_first":2000,"rows_last":500,"rows_between":2000,"halvings":0,"cell_chars":16384,"cell_head_chars":4096},"cells_cut":0,"cells_raw":0,"read":"whole","date_system":"1900"}

{"sheet":"октябрь","index":0,"n_rows":44,"n_cols":42,"rows_kept":44,"cut":false,"hidden":false,"merged":[[42,14,42,24],[43,4,43,10],[43,14,43,24],[39,4,39,10],[39,14,39,24],[40,14,40,24],[41,4,41,10],[41,14,41,24],[8,34,9,34],[8,35,9,35],[8,36,9,36],[8,37,9,37],[38,14,38,24],[8,28,9,28],[8,29,9,29],[8,30,9,30],[8,31,9,31],[8,32,9,32],[8,33,9,33],[7,38,9,38],[7,39,9,39],[8,5,9,5],[8,6,9,6],[8,7,9,7],[8,8,9,8],[8,9,9,9],[8,10,9,10],[8,11,9,11],[8,12,9,12],[8,13,9,13],[8,14,9,14],[8,15,9,15],[8,16,9,16],[8,17,9,17],[8,18,9,18],[6,4,6,36],[7,1,9,1],[7,2,9,2],[7,3,9,3],[7,4,9,4],[7,5,7,35],[7,36,7,37],[8,19,9,19],[8,20,9,20],[8,21,9,21],[8,22,9,22],[8,23,9,23],[8,24,9,24],[8,25,9,25],[8,26,9,26],[8,27,9,27],[5,4,5,36],[4,4,4,36],[0,5,0,35],[1,5,1,35],[2,5,2,35],[3,3,3,36]]}
[null,null,null,null,null,"Т А Б Е Л Ь",null,null,null,null,null,null,null,null,null,null,null,null,null,null,null,null,null,null,null,null,null,null,null,null,null,null,null,null,null,null,null,null,null,"КОДЫ"]
[null,null,null,null,null,"УЧЕТА ПОСЕЩАЕМОСТИ ДЕТЕЙ",null,null,null,null,null,null,null,null,null,null,null,null,null,null,null,null,null,null,null,null,null,null,null,null,null,null,null,null,null,null,null,null,"Форма по ОКУД  ",504608]
[null,null,null,null,null,"за ноябрь 2021 г.",null,null,null,null,null,null,null,null,null,null,null,null,null,null,null,null,null,null,null,null,null,null,null,null,null,null,null,null,null,null,null,null,"Дата  "]
[null,null,"Учреждение",null,null,null,null,null,null,null,null,null,null,null,null,null,null,null,null,null,null,null,null,null,null,null,null,null,null,null,null,null,null,null,null,null,null,null,"по ОКПО  ",7789261]
[null,null,"Структурное подразделение"]
[null,null,"Вид расчета"]
[null,null,"Режим работы"]
[null,"№№\nп/п","Фамилия, имя\nребенка","Номер\nсчета","Плата\nпо став-\nке","Дни посещения",null,null,null,null,null,null,null,null,null,null,null,null,null,null,null,null,null,null,null,null,null,null,null,null,null,null,null,null,null,null,"Пропущено дней",null,"Дни\nпосеще-\nния, под-\nлежащие\nоплате","Причины\nнепосещения\n(основание)"]
[null,null,null,null,null,1,2,3,4,5,6,7,8,9,10,11,12,13,14,15,16,17,18,19,20,21,22,23,24,25,26,27,28,29,30,null,"всего","в том \nчисле\nзасчи-\nтыва-\nемых"]
[]
[null,1,"Астахова Диана",1,null,null,null,null,null,null,null,null,"н","н","н",null,null,null,null,null,null,null,null,null,null,null,null,null,null,null,null,null,null,null,null,null,{"$f":"COUNTIF(F11:AI11,\"н\")","v":3},null,{"$f":"COUNTBLANK(F11:AJ11)-AP11","v":14},null,null,{"$f":"CountByColor(F11:AJ11,AP10)","v":14}]
[null,2,"Герасымчук Назарий",1,null,null,null,null,null,null,null,null,null,null,null,null,null,null,null,null,null,null,null,null,null,null,null,null,null,null,null,null,null,null,null,null,{"$f":"COUNTIF(F12:AI12,\"?\")","v":0},null,17,null,null,{"$f":"CountByColor(F12:AJ12,AP11)","v":14}]
[null,3,"Городничева Ясмина",1,null,null,null,null,null,null,null,null,null,null,"н",null,null,null,null,null,null,null,null,null,null,null,null,null,null,null,null,null,null,null,null,null,1,null,16,null,null,14]
[null,4,"Захарчук Захар",1,null,null,null,null,null,null,null,null,null,null,"н",null,null,null,null,null,null,null,null,null,null,null,null,null,null,null,null,null,null,null,null,null,1,null,16,null,null,14]
[null,5,"Колесников Максим",1,null,null,null,null,null,null,null,null,null,null,null,null,null,null,null,null,null,null,null,null,null,null,null,null,null,null,null,null,null,null,null,null,0,null,17,null,null,14]
[null,6,"Колобов Савелий",1,null,null,null,null,null,null,null,null,null,null,"н",null,null,null,null,null,null,null,null,null,null,null,null,null,null,null,null,null,null,null,null,null,1,null,16,null,null,14]
[null,7,"Кудайбердиева Алия",1,null,null,null,null,null,null,null,null,"н","н","н",null,null,null,null,null,null,null,null,null,null,null,null,null,null,null,null,null,null,null,null,null,3,null,14,null,null,14]
[null,8,"Кущ Алиса",1,null,null,null,null,null,null,null,null,null,null,"н",null,null,null,null,null,null,null,null,null,null,null,null,null,null,null,null,null,null,null,null,null,1,null,16,null,null,14]
[null,9,"Лиходеев Александр",1,null,null,null,null,null,null,null,null,null,null,"н",null,null,null,null,null,null,null,null,null,null,null,null,null,null,null,null,null,null,null,null,null,1,null,16,null,null,14]
[null,10,"Намсараев Мунко",1,null,null,null,null,null,null,null,null,"н",null,"н",null,null,null,null,null,null,null,null,null,null,null,null,null,null,null,null,null,null,null,null,null,2,null,15,null,null,14]
[null,11,"Палюшкевич Алёна",1,null,null,null,null,null,null,null,null,"н",null,"н",null,null,null,null,null,null,null,null,null,null,null,null,null,null,null,null,null,null,null,null,null,2,null,15,null,null,14]
[null,12,"Попова Екатерина",1,null,null,null,null,null,null,null,null,null,null,"н",null,null,null,null,null,null,null,null,null,null,null,null,null,null,null,null,null,null,null,null,null,1,null,16,null,null,14]
[null,13,"Похил Елизавета",1,null,null,null,null,null,null,null,null,null,null,"н",null,null,null,null,null,null,null,null,null,null,null,null,null,null,null,null,null,null,null,null,null,1,null,16,null,null,14]
[null,14,"Прокопец Полина","овз",null,null,null,null,null,null,null,null,"н","н","н",null,null,null,null,null,null,null,null,null,null,null,null,null,null,null,null,null,null,null,null,null,3,null,14,null,null,14]
[null,15,"Пыхтин Кирилл",1,null,null,null,null,null,null,null,null,null,null,null,null,null,null,null,null,null,null,null,null,null,null,null,null,null,null,null,null,null,null,null,null,0,null,17,null,null,14]
[null,16,"Пятых Максим",1,null,null,null,null,null,null,null,null,"н",null,"н",null,null,null,null,null,null,null,null,null,null,null,null,null,null,null,null,null,null,null,null,null,2,null,15,null,null,14]
[null,17,"Саидахмедова Арианна",1,null,null,null,null,null,null,null,null,null,null,"н",null,null,null,null,null,null,null,null,null,null,null,null,null,null,null,null,null,null,null,null,null,1,null,16,null,null,14]
[null,18,"Скачков Никита",1,null,null,null,null,null,null,null,null,null,null,"н",null,null,null,null,null,null,null,null,null,null,null,null,null,null,null,null,null,null,null,null,null,1,null,16,null,null,14]
[null,19,"Смагина Ульяна",1,1,null,null,null,null,null,null,null,null,null,"н",null,null,null,null,null,null,null,null,null,null,null,null,null,null,null,null,null,null,null,null,null,1,null,16,null,null,14]
[null,20,"Спиридонова Маргарита",1,null,null,null,null,null,null,null,null,null,null,null,null,null,null,null,null,null,null,null,null,null,null,null,null,null,null,null,null,null,null,null,null,0,null,17,null,null,14]
[null,21,"Ушаков Савва",null,null,null,null,null,null,null,null,null,null,null,"н",null,null,null,null,null,null,null,null,null,null,null,null,null,null,null,null,null,null,null,null,null,1,null,16,null,null,14]
[null,22,"Холевинский Кирилл",null,null,null,null,null,null,null,null,null,null,null,"н",null,null,null,null,null,null,null,null,null,null,null,null,null,null,null,null,null,null,null,null,null,1,null,16,null,null,14]
[null,23,"Шапанова Марям",null,null,null,null,null,null,null,null,null,null,null,"н",null,null,null,null,null,null,null,null,null,null,null,null,null,null,null,null,null,null,null,null,null,1,null,16,null,null,14]
[null,24,"Шапран Софья",null,null,null,null,null,null,null,null,null,null,null,"н",null,null,null,null,null,null,null,null,null,null,null,null,null,null,null,null,null,null,null,null,null,1,null,16,null,null,14]
["н",25,"Юсупов Матвей",null,null,null,null,null,null,null,null,null,null,null,"н",null,null,null,null,null,null,null,null,null,null,null,null,null,null,null,null,null,null,null,null,null,1,null,16,null,null,14]
[null,26,"Жаркой Виктор",null,null,null,null,null,null,null,null,null,null,null,"н",null,null,null,null,null,null,null,null,null,null,null,null,null,null,null,null,null,null,null,null,null,1,null,16,null,null,14]
[]
[null,null,null,null,null,null,null,null,null,null,null,null,{"$f":"COUNTBLANK(M11:M36)","v":20},23,4,26,26,null,null,26,26,26,26,26,null,null,26,26,{"$f":"COUNTBLANK(AC11:AC36)","v":26},26,26,null,null,26,26]
[null,null," Директор МБОУ"]
[null,null,null,null,"(подпись)",null,null,null,null,null,null,null,null,null,"(расшифрока подписи)"]
[null,null,"Организатор питания"]
[null,null,null,null,"(подпись)",null,null,null,null,null,null,null,null,null,"(расшифрока подписи)"]
[null,null,"Классный руководитель"]
[null,null,null,null,"(подпись)",null,null,null,null,null,null,null,null,null,"(расшифрока подписи)"]